{"text_format":"1","workbook":"xlsx","n_sheets":1,"sheets":["Form_44"],"not_rendered":{"charts":0,"images":2,"macros":1,"external_links":2,"defined_names":13,"comments":1,"pivot_tables":0},"unopened":[],"bounds":{"document_bytes":16777216,"sheet_cells":100000,"rows_first":2000,"rows_last":500,"rows_between":2000,"halvings":0,"cell_chars":16384,"cell_head_chars":4096},"cells_cut":0,"cells_raw":0,"read":"whole","date_system":"1900"}

{"sheet":"Form_44","index":0,"n_rows":33,"n_cols":32,"rows_kept":33,"cut":false,"hidden":false,"merged":[[31,1,31,20],[27,1,27,20],[32,0,33,1],[32,2,33,6],[32,14,33,17],[32,18,33,20],[26,2,26,20],[29,1,29,20],[30,1,30,20],[7,19,10,19],[7,20,10,20],[7,3,7,14],[24,0,24,18],[7,16,10,16],[7,17,10,17],[7,18,10,18],[7,0,10,0],[7,15,10,15],[3,0,3,20],[4,0,4,20],[1,0,1,18],[7,1,10,1],[5,0,5,20],[6,0,6,20]]}
[]
["राजस्थान सरकार\nप्राविधिक शिक्षा मण्डल, राजस्थान, जोधपुर \nपरीक्षा सत्र 2024-25 (इंजी, सेमेस्टर पद्धति नवम्बर, 2024)",null,null,null,null,null,null,null,null,null,null,null,null,null,null,null,null,null,null,"पारिश्रमिक विपत्र-44",null,null,null,null,null,null,0,null,null,null,0,11]
["परीक्षा केन्द्र /संस्थान का नाम एवं पूरा पता.......................................................................................... परीक्षा केन्द्र कोड...................................",null,null,null,null,null,null,null,null,null,null,null,null,null,null,null,null,null,null,null,null,null,null,null,null,null,1,null,null,null,1,12]
["परीक्षा केन्द्र/संस्थान के बैंक का नाम ........................................................................  खाता संख्या ......................संस्थान का पेन नम्बर.................................. आईएफएससी कोड........................................",null,null,null,null,null,null,null,null,null,null,null,null,null,null,null,null,null,null,null,null,null,null,null,null,null,2,null,null,null,2,13]
[null,null,null,null,null,null,null,null,null,null,null,null,null,null,null,null,null,null,null,null,null,null,null,null,null,null,null,null,null,null,null,14]
["(1) कॉलम कोड मे परीक्षा केन्द्र अधीक्षक हेतु 11, अतिरिक्त परीक्षा केन्द्र्र  अधीक्षक हेतु 12, परीक्षा वीक्षक हेतु 13, म्ंात्रालयिक हेतु 14 एवं चतुर्थ श्रेणी कर्मचारी हेतु 15 अंकित करें।",null,null,null,null,null,null,null,null,null,null,null,null,null,null,null,null,null,null,null,null,null,null,null,null,null,null,null,null,null,null,15]
["(2) दिनांक /पारी वाले कॉलम में उपस्थिति दिवस / पारी के दिन 1 अंकित करें अनुपस्थ्तिि पर 0 अंकित करें। कुल राशि वाले कॉलम  में गणना स्वतः ही होगी। अतः इस कॉलम में कुछ अंकित नहीं करे।"]
["SN.","Officer/Employee Name in Capital Letters with Designation\n",null,"Exam Date",null,null,null,null,null,null,null,null,null,null,null,"EXTRA-BEFORE","EXTRA-AFTER","TOTAL SESSIONS","RATE","TOTAL AMOUNT","SIGNATURE"]
[null,null,null,"2025-01-30","2025-01-31","2025-02-01","2025-02-03","2025-02-05","2025-02-06","2025-02-07","2025-02-08","2025-02-10","2025-02-11","2025-02-12","2025-02-13"]
[null,null,"STUDENT STRENGTH"]
[null,null,"CODE"]
[{"$f":"IF(B12=\"\",\"\",1)","v":""},null,null,0,null,null,null,null,null,null,null,null,null,null,0,null,null,{"$f":"SUM(D12:Q12)","v":0},null,{"$f":"IF(C12=\"\",0,IF(B12=\"\",0,IF(C12=11,R12*100,IF(C12=12,R12*75,IF(C12=13,ROUND(R12*70,0),IF(C12=14,R12*40,IF(C12=15,R12*30)))))))","v":0}]
[{"$f":"IF(B13=\"\",\"\",#REF!+1)","v":""},null,null,null,null,null,null,null,null,null,null,null,null,null,null,null,null,{"$f":"SUM(D13:Q13)","v":0},null,{"$f":"IF(C13=\"\",0,IF(B13=\"\",0,IF(C13=11,R13*100,IF(C13=12,R13*75,IF(C13=13,ROUND(R13*70,0),IF(C13=14,R13*40,IF(C13=15,R13*30)))))))","v":0}]
[{"$f":"IF(B14=\"\",\"\",#REF!+1)","v":""},null,null,null,null,null,null,null,null,null,null,null,null,null,null,null,null,0,null,0]
[{"$f":"IF(B15=\"\",\"\",#REF!+1)","v":""},null,null,null,null,null,null,null,null,null,null,null,null,null,null,null,null,0,null,0]
[{"$f":"IF(B16=\"\",\"\",A15+1)","v":""},null,null,null,null,null,null,null,null,null,null,null,null,null,null,null,null,0,null,0]
["",null,null,null,null,null,null,null,null,null,null,null,null,null,null,null,null,0,null,0]
[null,null,null,null,null,null,null,null,null,null,null,null,null,null,null,null,null,0,null,0]
[null,null,null,null,null,null,null,null,null,null,null,null,null,null,null,null,null,0,null,0]
[null,null,null,null,null,null,null,null,null,null,null,null,null,null,null,null,null,0,null,0]
[null,null,null,null,null,null,null,null,null,null,null,null,null,null,null,null,null,0,null,0]
[null,null,null,null,null,null,null,null,null,null,null,null,null,null,null,null,null,0,null,0]
[null,null,null,null,null,null,null,null,null,null,null,null,null,null,null,null,null,0,null,0]
[null,null,null,null,null,null,null,null,null,null,null,null,null,null,null,null,null,0,null,0]
["Grand Total",null,null,null,null,null,null,null,null,null,null,null,null,null,null,null,null,null,null,{"$f":"SUM(T12:T24)","v":0}]
[null,"dqy :Ik;s vadks esa",{"$f":"+T25","v":0}]
[null,"dqy :Ik;s 'kCnksa esa ",{"$f":"IF(T25>0, SUBSTITUTE(spellnumber(T25),\"Dollars and No Cents\",\"only\"),\"Rupees ….Nil ….\")","v":"Rupees ….Nil …."}]
[null,"No.                                         e.My dk;kZy; ç;ksxkFkZ\nfnukad                                          çekf.kr ,oa ikfjr \n\n"]
["izek.k i=%&"]
[1,"izekf.kr fd;k tkrk gS fd izkfof/kd f'k{kk e.My] jktFkku] tks/kiqj ijh{kk ckcr~ le;&le; ij izlkfjr funsZ'k ;Fkk ijh{kk v/kh{kd funsZ'k iqfLrwdk dh ikyuk djrs gq, fu/kkZfjr ekin.M vuqlkj dkfeZdksa dh lsok,as izkIr djrs gq, ikfjJfed nkok funsZ'kkuqlkj vko';d foi=ksa dks layXu djrs gq, izLrqr fd;k x;k gSA"]
[2,"Hkqxrku gsrq ;g fcy izFke ckj izLrqr x;k gSA"]
[3,"Hkqxrku forj.k I'pkr izkfIr jlhn e.My dks fHktok nh tk;sxhA"]
["izHkkjh vf/kdkjh",null,"izHkkjh",null,null,null,null,null,null,null,null,null,null,null,null,null,null,null,"iz/kkukpk;Z gLrk{kj e; lhy"]